bitfinex/quotes_SOLUSD_20250717
["timestamp","ask_amount","ask_price","bid_price","bid_amount"]
[1752739346006,29.82,173.76,173.75,6.08770055]
[1752739346196,29.82,173.76,173.75,0.67]
[1752739346811,29.82,173.76,173.75,0.03]
[1752739347822,35.57506445,173.76,173.75,0.03]
[1752739348624,5.75506445,173.76,173.75,0.03]
[1752739348920,5.754071,173.79,173.75,0.03]
[1752739349101,29.82,173.78,173.75,0.67]
[1752739349516,29.82,173.78,173.76,0.64]
[1752739349715,29.82,173.78,173.77,5.41770055]
[1752739349920,35.57440211,173.78,173.77,0.64]
[1752739350131,35.57440211,173.78,173.76,5.41770055]
[1752739350345,35.57440211,173.78,173.75,6.08770055]
[1752739350906,36.24440211,173.78,173.75,0.03]
[1752739351109,41.66210266,173.78,173.75,0.03]
[1752739351520,35.57440211,173.78,173.75,0.67]
[1752739352575,29.8,173.78,173.76,6.05770055]
[1752739352726,29.8,173.78,173.77,0.64]
[1752739353032,11.17110944,173.81,173.77,6.05770055]
[1752739353033,5.75340889,173.81,173.77,6.05770055]
[1752739353207,5.75340889,173.81,173.79,5.41770055]
[1752739353404,35.55340889,173.81,173.79,6.05770055]
[1752739354005,35.55340889,173.81,173.78,5.41770055]
[1752739356429,35.55340889,173.81,173.77,0.64]
[1752739356627,35.55340889,173.81,173.75,0.03]
[1752739356628,5.41770055,173.79,173.75,0.03]
[1752739356934,35.21770055,173.78,173.75,0.03]
[1752739357237,35.92770055,173.78,173.75,0.03]
[1752739357436,5.41770055,173.76,173.75,0.03]
[1752739357618,35.21770055,173.76,173.75,0.03]
[1752739357812,35.92770055,173.76,173.75,0.03]
[1752739358657,22.54007965,173.75,173.74,0.03]
[1752739358818,28.6677802,173.75,173.74,0.03]
[1752739359012,28.6677802,173.75,173.72,0.03]
[1752739359246,5.41770055,173.73,173.72,0.03]
[1752739359543,22.91238452,173.73,173.72,0.03]
[1752739360618,28.66844277,173.73,173.72,0.03]
[1752739360928,28.66844277,173.73,173.7,0.03]
[1752739360929,26.0,173.71,173.7,0.03]
[1752739361118,73.23988773,173.71,173.7,0.03]
[1752739361326,73.94988773,173.71,173.7,0.03]
[1752739361948,18.14988773,173.71,173.7,0.03]
[1752739362125,64.7345717,173.71,173.7,0.03]
[1752739362324,16.78468397,173.7,173.65,0.03]
[1752739362533,16.78468397,173.68,173.65,0.03]
[1752739362733,27.96009985,173.68,173.65,0.03]
[1752739362932,5.75747178,173.69,173.65,6.08770055]
[1752739363138,35.55747178,173.69,173.67,0.84]
[1752739363917,35.55747178,173.69,173.67,0.2]
[1752739365743,35.55747178,173.69,173.67,5.61770055]
[1752739366036,35.55747178,173.69,173.67,0.2]
[1752739366239,29.8,173.69,173.67,5.61770055]
[1752739366419,29.8,173.69,173.67,0.84]
[1752739366744,29.8,173.69,173.67,6.25770055]
[1752739366927,22.54074222,173.73,173.68,0.64]
[1752739367123,35.21770055,173.72,173.68,0.64]
[1752739367530,5.75672097,173.71,173.68,0.64]
[1752739367740,35.55672097,173.71,173.68,0.64]
[1752739368337,35.55672097,173.71,173.67,5.61770055]
[1752739368558,35.55672097,173.71,173.67,6.25770055]
[1752739368923,35.55672097,173.71,173.67,0.84]
[1752739369639,35.55672097,173.71,173.67,6.25770055]
[1752739370858,17.49468397,173.7,173.67,0.2]
[1752739371030,5.41770055,173.68,173.67,0.2]
[1752739372437,41.68541588,173.68,173.67,0.2]
[1752739373322,40.97541588,173.68,173.67,0.2]
[1752739374453,41.68541588,173.68,173.67,0.2]
[1752739374662,0.71,173.75,173.67,12.01573884]
[1752739374850,29.8,173.75,173.72,5.41770055]
[1752739375155,29.8,173.75,173.67,12.32113829]
[1752739375156,29.8,173.75,173.71,5.41770055]
[1752739375356,5.41770055,173.73,173.68,5.41770055]
[1752739375566,29.8,173.72,173.68,5.41770055]
[1752739375727,29.8,173.72,173.68,6.05770055]
[1752739376127,11.17442152,173.71,173.67,11.98080055]
[1752739376351,11.17442152,173.71,173.67,5.61770055]
[1752739376564,0.71,173.7,173.67,0.2]
[1752739376741,5.41770055,173.68,173.67,0.2]
[1752739376929,6.12770055,173.69,173.67,0.2]
[1752739377431,6.12770055,173.68,173.67,0.2]
[1752739377633,35.92770055,173.68,173.67,0.2]
[1752739378244,41.68541588,173.68,173.67,0.2]
[1752739379253,36.26771533,173.68,173.67,0.2]
[1752739379559,41.68541588,173.68,173.67,0.2]
[1752739381655,36.26771533,173.68,173.67,0.2]
[1752739381858,41.68541588,173.68,173.67,0.2]
[1752739383062,36.26771533,173.68,173.67,0.2]
[1752739383239,41.68541588,173.68,173.67,0.2]
[1752739383849,36.26771533,173.68,173.67,0.2]
[1752739384042,41.68541588,173.68,173.67,0.2]
[1752739385059,40.97541588,173.68,173.67,0.2]
[1752739385247,11.17541588,173.68,173.67,0.2]
[1752739385441,35.55771533,173.68,173.67,0.2]
[1752739385763,40.97541588,173.68,173.67,0.2]
[1752739385944,41.68541588,173.68,173.67,0.2]
[1752739387247,16.78468397,173.67,173.65,0.03]
[1752739387452,35.21770055,173.66,173.65,0.03]
[1752739387649,35.92770055,173.66,173.65,0.03]
[1752739388064,35.92770055,173.66,173.6,0.03]
[1752739388244,5.41770055,173.61,173.6,0.03]
[1752739388661,5.76003686,173.61,173.6,0.03]
[1752739388864,11.17773741,173.61,173.6,0.03]
[1752739389653,5.76003686,173.61,173.6,0.03]
[1752739391454,6.47003686,173.61,173.6,0.03]
[1752739391666,11.88773741,173.61,173.6,0.03]
[1752739392278,11.17773741,173.61,173.6,0.03]
[1752739392451,5.76003686,173.61,173.6,0.03]
[1752739393548,148.1,173.67,173.6,6.08770055]
[1752739393850,5.41770055,173.65,173.6,5.44770055]
[1752739394054,20.15316404,173.67,173.61,6.05770055]
[1752739394247,29.8,173.66,173.62,5.41770055]
[1752739394453,29.8,173.66,173.63,0.64]
[1752739395261,5.41770055,173.64,173.6,0.03]
[1752739395460,29.8,173.64,173.62,5.41770055]
[1752739395770,35.55872755,173.65,173.62,0.64]
[1752739395971,0.71,173.64,173.6,5.44770055]
[1752739396197,0.71,173.64,173.6,0.03]
[1752739396359,30.51,173.64,173.6,5.44770055]
[1752739396975,30.51,173.64,173.61,6.05770055]
[1752739396976,29.8,173.64,173.61,6.05770055]
[1752739397188,35.21770055,173.64,173.61,0.64]
[1752739397381,29.8,173.64,173.61,0.64]
[1752739397641,35.55924193,173.64,173.61,6.05770055]
[1752739397879,6.12770055,173.63,173.6,0.03]
[1752739398083,35.21770055,173.62,173.6,0.03]
[1752739398282,5.41770055,173.61,173.6,0.03]
[1752739398576,6.12770055,173.61,173.6,0.03]
[1752739399678,11.88773741,173.61,173.6,0.03]
[1752739400349,11.88773741,173.61,173.54,26.0]
[1752739400671,5.41770055,173.58,173.54,26.0]
[1752739400873,35.21770055,173.58,173.54,26.64]
[1752739401281,35.92770055,173.58,173.54,0.64]
[1752739401571,148.1,173.63,173.56,5.41770055]
[1752739401572,0.71,173.62,173.56,5.41770055]
[1752739401784,29.8,173.61,173.57,6.05770055]
[1752739402276,29.8,173.61,173.58,0.64]
[1752739402452,29.8,173.61,173.59,0.64]
[1752739402651,5.7597051,173.62,173.59,0.64]
[1752739403084,11.17740565,173.62,173.58,5.41770055]
[1752739403459,11.88740565,173.62,173.58,5.41770055]
[1752739404076,11.88740565,173.62,173.57,26.64]
[1752739404369,11.88740565,173.62,173.58,5.41770055]
[1752739405154,11.88740565,173.62,173.57,26.64]
[1752739405357,11.88740565,173.62,173.58,5.41770055]
[1752739405567,5.41770055,173.61,173.57,26.64]
[1752739405774,5.41770055,173.61,173.57,32.05770055]
[1752739405971,11.88740565,173.62,173.57,32.05770055]
[1752739406367,11.88740565,173.62,173.57,6.05770055]
[1752739406686,5.41770055,173.6,173.57,26.0]
[1752739406883,5.41770055,173.6,173.55,0.64]
[1752739406884,6.12770055,173.6,173.55,6.05770055]
[1752739407288,5.7607005,173.59,173.56,6.05770055]
[1752739407781,5.7607005,173.59,173.54,30.44]
[1752739407993,6.4707005,173.59,173.55,5.41770055]
[1752739408181,0.71,173.58,173.54,29.8]
[1752739408496,0.71,173.58,173.54,35.21770055]
[1752739408659,0.71,173.58,173.54,5.41770055]
[1752739408856,5.7607005,173.59,173.55,6.05770055]
[1752739409082,5.7607005,173.59,173.56,0.64]
[1752739409282,5.7607005,173.59,173.53,26.69270603]
[1752739409283,11.88840105,173.59,173.53,27.33270603]
[1752739409464,0.71,173.58,173.54,5.41770055]
[1752739409663,11.17840105,173.59,173.54,5.41770055]
[1752739409865,11.88840105,173.59,173.54,6.05770055]
[1752739410495,6.4707005,173.59,173.55,5.41770055]
[1752739410692,5.7607005,173.59,173.55,0.64]
[1752739411003,5.7607005,173.59,173.56,5.41770055]
[1752739411293,5.7607005,173.59,173.55,6.05770055]
[1752739411486,6.4607005,173.59,173.55,6.05770055]
[1752739411982,0.7,173.58,173.54,5.41770055]
[1752739412183,0.7,173.58,173.54,6.05770055]
[1752739412590,5.7607005,173.59,173.55,5.41770055]
[1752739412778,5.7607005,173.59,173.55,0.64]
[1752739412976,5.7607005,173.59,173.55,6.05770055]
[1752739413183,6.4607005,173.59,173.55,6.05770055]
[1752739414088,6.4607005,173.59,173.56,5.41770055]
[1752739414484,6.4607005,173.59,173.55,6.05770055]
[1752739414794,6.4607005,173.59,173.55,5.41770055]
[1752739415603,11.87840105,173.59,173.54,5.41770055]
[1752739415771,11.87840105,173.59,173.54,6.05770055]
[1752739415977,5.76136429,173.57,173.54,6.05770055]
[1752739416898,6.46136429,173.57,173.54,5.41770055]
[1752739417600,0.7,173.56,173.52,5.41770055]
[1752739417772,0.7,173.56,173.5,62.9967]
[1752739417773,5.41770055,173.54,173.5,30.0]
[1752739417978,5.76269232,173.53,173.5,30.0]
[1752739418184,6.46269232,173.53,173.5,0.2]
[1752739420189,11.88039287,173.53,173.5,0.2]
[1752739421710,6.11770055,173.52,173.5,0.2]
[1752739422087,11.88105712,173.51,173.5,0.2]
[1752739423786,11.88105712,173.51,173.46,0.03]
[1752739423787,5.41770055,173.48,173.46,0.03]
[1752739423988,29.8,173.49,173.46,0.03]
[1752739424190,6.11770055,173.47,173.46,0.03]
[1752739424412,0.7,173.47,173.46,0.03]
[1752739424591,5.76435323,173.48,173.46,0.03]
[1752739424994,0.7,173.53,173.47,6.05770055]
[1752739425192,5.76269232,173.53,173.5,5.41770055]
[1752739425399,5.76269232,173.53,173.5,0.64]
[1752739425600,5.76269232,173.53,173.5,6.05770055]
[1752739425925,5.76269232,173.53,173.48,0.64]
[1752739426086,5.76269232,173.53,173.5,5.41770055]
[1752739426420,0.7,173.52,173.49,5.41770055]
[1752739426598,35.91770055,173.51,173.46,0.03]
[1752739426798,5.41770055,173.49,173.46,0.03]
[1752739427180,0.7,173.48,173.46,0.03]
[1752739427414,6.11770055,173.48,173.46,0.03]
[1752739427748,6.11770055,173.47,173.46,0.03]
[1752739428554,11.88238608,173.47,173.46,0.03]
[1752739428757,26.29409992,173.47,173.42,0.2]
[1752739428936,5.41770055,173.43,173.42,0.2]
[1752739429258,29.8,173.45,173.42,0.2]
[1752739429548,0.7,173.44,173.42,0.2]
[1752739429723,6.11770055,173.43,173.42,0.2]
[1752739429924,0.7,173.43,173.42,0.2]
[1752739430338,6.11770055,173.43,173.42,0.2]
[1752739430650,11.88371565,173.43,173.42,0.2]
[1752739430849,6.4660151,173.43,173.42,0.2]
[1752739431030,14.44674583,173.43,173.42,0.2]
[1752739431355,6.4660151,173.43,173.42,0.2]
[1752739431570,14.44674583,173.43,173.42,0.2]
[1752739432268,6.4660151,173.43,173.42,0.2]
[1752739434871,14.44674583,173.43,173.42,0.2]
[1752739435070,44.74674583,173.43,173.42,0.2]
[1752739435958,6.4660151,173.43,173.42,0.2]
[1752739436151,36.7660151,173.43,173.42,0.2]
[1752739436554,5.7660151,173.43,173.42,0.2]
[1752739436753,44.08674583,173.43,173.42,0.2]
[1752739437055,36.1060151,173.43,173.42,0.2]
[1752739437373,5.7660151,173.43,173.42,0.2]
[1752739437764,13.74674583,173.43,173.42,0.2]
[1752739437963,14.44674583,173.43,173.42,0.2]
[1752739438679,6.4660151,173.43,173.42,0.2]
[1752739438974,5.7660151,173.43,173.42,0.2]
[1752739439176,1.5829,173.42,173.37,0.2]
[1752739439355,31.08,173.41,173.37,0.2]
[1752739439558,7.98073073,173.38,173.37,0.2]
[1752739439778,30.36,173.38,173.37,0.2]
[1752739440254,38.34073073,173.38,173.37,0.2]
[1752739440455,36.82767793,173.38,173.37,0.2]
[1752739440776,44.80840866,173.38,173.37,0.2]
[1752739440978,51.24687276,173.38,173.29,1.31519122]
[1752739441163,7.98073073,173.32,173.29,0.67]
[1752739441365,7.98073073,173.32,173.27,34.64073073]
[1752739441568,7.98073073,173.33,173.28,8.64073073]
[1752739441766,7.98073073,173.33,173.29,0.66]
[1752739442076,7.98073073,173.33,173.3,0.66]
[1752739442278,0.66,173.37,173.31,0.66]
[1752739442480,13.7492458,173.36,173.31,8.64073073]
[1752739442782,38.40073073,173.38,173.33,7.98073073]
[1752739442970,7.98073073,173.37,173.33,7.98073073]
[1752739443175,7.98073073,173.37,173.34,0.66]
[1752739443474,30.42,173.38,173.34,0.66]
[1752739443682,30.42,173.38,173.34,8.64073073]
[1752739443875,38.40073073,173.38,173.34,8.64073073]
[1752739444078,30.42,173.38,173.35,0.66]
[1752739444282,38.40073073,173.38,173.35,0.66]
[1752739444466,7.98073073,173.38,173.35,0.66]
[1752739444863,0.66,173.42,173.37,26.0]
[1752739445091,38.44073073,173.42,173.38,0.66]
[1752739445467,30.46,173.42,173.38,8.64073073]
[1752739445671,5.76634759,173.42,173.38,8.64073073]
[1752739445984,5.76634759,173.42,173.39,0.66]
[1752739446869,5.76634759,173.42,173.39,8.64073073]
[1752739447176,5.76634759,173.42,173.39,0.66]
[1752739447487,5.76634759,173.42,173.39,8.64073073]
[1752739447677,5.76634759,173.42,173.39,0.66]
[1752739447986,5.76634759,173.42,173.39,8.64073073]
[1752739449385,6.42634759,173.42,173.38,7.98073073]
[1752739449885,5.76634759,173.42,173.39,7.98073073]
[1752739450775,5.76634759,173.42,173.38,8.64073073]
[1752739450983,14.40707832,173.42,173.37,7.98073073]
[1752739451174,14.40707832,173.42,173.37,8.64073073]
[1752739451375,14.40707832,173.42,173.38,7.98073073]
[1752739451376,6.42634759,173.42,173.38,7.98073073]
[1752739451779,5.76634759,173.42,173.39,8.64073073]
[1752739452888,5.76634759,173.42,173.38,7.98073073]
[1752739453071,6.42634759,173.42,173.38,7.98073073]
[1752739453388,6.42634759,173.42,173.37,0.66]
[1752739453389,14.40707832,173.42,173.37,0.66]
[1752739453575,6.42634759,173.42,173.38,7.98073073]
[1752739454187,6.42634759,173.42,173.39,7.98073073]
[1752739454584,5.76634759,173.42,173.39,7.98073073]
[1752739455089,5.76634759,173.42,173.39,5.44080144]
[1752739455387,5.76634759,173.42,173.4,6.10080144]
[1752739455606,36.22609767,173.43,173.4,6.10080144]
[1752739455897,0.66,173.46,173.35,26.0]
[1752739455898,6.10080144,173.46,173.42,5.44080144]
[1752739456103,30.42,173.45,173.42,5.44080144]
[1752739456464,36.18535024,173.45,173.42,5.44080144]
[1752739456670,36.18535024,173.45,173.43,5.44080144]
[1752739456870,36.18535024,173.45,173.42,0.66]
[1752739457069,36.18535024,173.45,173.43,5.44080144]
[1752739458297,5.76503257,173.46,173.44,5.44080144]
[1752739458591,22.88548541,173.45,173.37,6.10080144]
[1752739458796,31.04,173.44,173.37,6.10080144]
[1752739458992,5.44080144,173.42,173.37,6.10080144]
[1752739459300,6.10080144,173.42,173.37,6.10080144]
[1752739459676,5.76668012,173.41,173.37,26.66]
[1752739459989,5.76668012,173.41,173.37,32.10080144]
[1752739460192,5.76643118,173.42,173.39,5.44080144]
[1752739460602,5.76643118,173.42,173.38,6.10080144]
[1752739460784,5.82643118,173.42,173.38,6.10080144]
[1752739460985,5.82643118,173.42,173.38,8.63993277]
[1752739461187,6.48643118,173.42,173.38,8.63993277]
[1752739462192,5.82643118,173.42,173.39,7.97993277]
[1752739462719,0.06,173.42,173.4,0.66]
[1752739463274,5.82638236,173.42,173.4,0.66]
[1752739463694,0.06,173.42,173.41,8.63993277]
[1752739464089,0.06,173.42,173.41,25.42461674]
[1752739464392,0.06,173.42,173.41,26.95361674]
[1752739464975,0.06,173.42,173.41,56.95361674]
[1752739465699,0.06,173.42,173.41,62.72029686]
[1752739468101,0.06,173.42,173.41,54.74036409]
[1752739468282,0.06,173.42,173.41,62.72029686]
[1752739469897,0.06,173.42,173.41,91.22029686]
[1752739470498,0.06,173.42,173.41,97.76939686]
[1752739470812,0.06,173.49,173.44,26.0]
[1752739471102,0.06,173.49,173.48,7.97993277]
[1752739471607,0.06,173.49,173.48,8.66993277]
[1752739472384,0.77,173.49,173.47,26.0]
[1752739472597,0.71,173.48,173.47,26.0]
[1752739472788,0.71,173.48,173.47,33.97993277]
[1752739473106,0.06,173.49,173.47,33.97993277]
[1752739473327,0.77,173.49,173.47,33.97993277]
[1752739473495,0.77,173.49,173.47,26.0]
[1752739473813,6.53410765,173.49,173.47,7.97993277]
[1752739475383,6.53410765,173.49,173.44,90.5655662]
[1752739475589,6.53410765,173.49,173.47,7.97993277]
[1752739476696,0.06,173.49,173.44,62.7555662]
[1752739477000,0.77,173.49,173.47,7.97993277]
[1752739477685,0.06,173.49,173.47,7.97993277]
[1752739477886,0.06,173.49,173.48,7.97993277]
[1752739478389,0.06,173.49,173.48,0.69]
[1752739478789,0.06,173.49,173.48,8.66993277]
[1752739479006,0.06,173.49,173.46,31.01]
[1752739479216,0.06,173.49,173.48,7.97993277]
[1752739479393,0.77,173.49,173.46,30.32]
[1752739479595,0.77,173.49,173.46,7.97993277]
[1752739479795,0.71,173.48,173.46,7.97993277]
[1752739480307,6.4743564,173.48,173.46,7.97993277]
[1752739480516,5.82410406,173.49,173.47,7.97993277]
[1752739480698,6.53410406,173.49,173.47,7.97993277]
[1752739481117,6.53410406,173.49,173.47,5.43573497]
[1752739481317,6.53410406,173.49,173.44,62.77560284]
[1752739481511,6.53410406,173.49,173.47,5.43573497]
[1752739481696,5.82410406,173.49,173.44,26.0]
[1752739481897,5.43573497,173.47,173.41,0.69]
[1752739482101,6.14573497,173.48,173.43,5.43573497]
[1752739482293,0.71,173.47,173.43,5.43573497]
[1752739482495,5.43573497,173.46,173.41,5.43573497]
[1752739482691,6.14573497,173.45,173.4,5.43573497]
[1752739482899,5.43573497,173.44,173.39,5.43573497]
[1752739483408,0.71,173.43,173.4,5.43573497]
[1752739483619,0.71,173.45,173.42,5.46573497]
[1752739483791,5.76515722,173.46,173.42,5.46573497]
[1752739483986,6.47515722,173.46,173.42,5.46573497]
[1752739485099,6.47515722,173.46,173.43,5.43573497]
[1752739485796,6.47515722,173.46,173.42,0.03]
[1752739486005,6.47515722,173.46,173.42,5.46573497]
[1752739486204,0.77,173.48,173.44,5.43573497]
[1752739487000,0.71,173.47,173.44,5.43573497]
[1752739487195,6.47470256,173.47,173.44,5.43573497]
[1752739487797,6.47470256,173.47,173.43,26.0]
[1752739487798,0.71,173.46,173.43,26.0]
[1752739488004,0.71,173.46,173.42,5.46573497]
[1752739488310,0.71,173.46,173.42,0.03]
[1752739488510,0.71,173.45,173.42,5.46573497]
[1752739489415,6.47535446,173.45,173.42,5.46573497]
[1752739489617,5.76535446,173.45,173.42,5.46573497]
[1752739489917,0.71,173.44,173.42,5.46573497]
[1752739490922,5.76535446,173.45,173.42,5.46573497]
[1752739491127,6.47535446,173.45,173.42,5.46573497]
[1752739491424,5.76468553,173.47,173.43,5.43573497]
[1752739491613,0.71,173.46,173.43,5.43573497]
[1752739491922,0.71,173.46,173.42,0.03]
[1752739492110,0.71,173.46,173.43,5.43573497]
[1752739492622,5.76468553,173.47,173.43,5.43573497]
[1752739492802,6.47468553,173.47,173.43,5.43573497]
[1752739493328,5.8244628,173.48,173.45,5.43573497]
[1752739493818,6.5344628,173.48,173.45,5.43573497]
[1752739497737,6.5344628,173.48,173.42,6.48623092]
[1752739497930,6.5344628,173.48,173.45,5.43573497]
[1752739499227,6.5344628,173.48,173.47,5.43573497]
[1752739499228,0.06,173.48,173.47,5.43573497]
[1752739500428,0.77,173.48,173.47,5.43573497]
[1752739500933,6.5343922,173.48,173.46,5.43573497]
[1752739501830,6.10573497,173.47,173.42,0.03]
[1752739502031,5.43573497,173.46,173.42,0.03]
[1752739502217,6.10573497,173.46,173.42,0.03]
[1752739502538,0.67,173.45,173.42,0.03]
[1752739502830,5.76568265,173.44,173.42,0.03]
[1752739503032,6.43568265,173.44,173.42,0.03]
[1752739503410,0.67,173.44,173.42,5.46573497]
[1752739503929,5.76544136,173.45,173.42,5.46573497]
[1752739504234,6.43544136,173.45,173.42,5.46573497]
[1752739504539,0.73,173.48,173.44,5.43573497]
[1752739504835,0.67,173.47,173.44,5.43573497]
[1752739505237,5.82435323,173.48,173.44,5.43573497]
[1752739505536,6.49435323,173.48,173.44,5.43573497]
[1752739505734,0.06,173.48,173.47,5.43573497]
[1752739506809,0.06,173.48,173.47,6.10573497]
[1752739507623,0.06,173.48,173.47,28.65510447]
[1752739507836,0.06,173.48,173.47,30.27060447]
[1752739508211,0.06,173.49,173.47,34.88357473]
[1752739508434,0.06,173.49,173.48,10.87146994]
[1752739508616,0.06,173.49,173.48,11.54146994]
[1752739509342,0.06,173.49,173.48,17.30582317]
[1752739509940,0.06,173.52,173.51,42.78468397]
[1752739510119,0.06,173.54,173.53,31.43573497]
[1752739510317,0.06,173.54,173.53,22.22041894]
[1752739510533,0.06,173.54,173.53,22.89041894]
[1752739511040,0.06,173.54,173.53,25.41570762]
[1752739511430,0.06,173.54,173.53,31.17839994]
[1752739511829,0.06,173.54,173.5,6.0301]
[1752739512027,0.06,173.54,173.53,7.96102365]
[1752739512753,0.73,173.54,173.52,7.96102365]
[1752739512930,0.73,173.54,173.53,7.96102365]
[1752739513243,0.06,173.54,173.53,7.96102365]
[1752739515421,0.06,173.54,173.53,51.41570762]
[1752739515622,0.06,173.54,173.53,25.41570762]
[1752739515846,0.06,173.54,173.53,31.17839994]
[1752739520142,0.06,173.54,173.53,38.06102365]
[1752739521461,0.06,173.54,173.53,38.73102365]
[1752739521661,0.06,173.54,173.53,44.49371597]
[1752739522361,0.06,173.54,173.53,61.27839994]
[1752739525954,0.06,173.54,173.53,89.77839994]
[1752739530978,0.06,173.54,173.53,87.24566975]
[1752739531348,0.06,173.54,173.53,81.81737629]
[1752739531549,0.06,173.54,173.53,87.24566975]
[1752739531852,0.06,173.54,173.53,57.14566975]
[1752739532075,0.06,173.54,173.53,87.16566975]
[1752739533155,0.06,173.54,173.53,81.06737629]
[1752739533360,0.06,173.54,173.53,55.98]
[1752739533663,0.06,173.54,173.53,61.40829346]
[1752739534375,0.06,173.54,173.53,55.98]
[1752739534574,0.06,173.54,173.53,61.40829346]
[1752739536672,0.06,173.54,173.53,55.98]
[1752739536874,0.06,173.54,173.53,61.40829346]
[1752739542195,0.75,173.54,173.5,16.78468397]
[1752739542481,0.75,173.54,173.46,16.78468397]
[1752739542482,6.17829346,173.54,173.46,16.78468397]
[1752739542684,5.76368876,173.5,173.46,33.92829346]
[1752739542851,0.69,173.49,173.46,35.46829346]
[1752739543053,0.69,173.49,173.46,30.04]
[1752739543253,0.69,173.48,173.46,35.46829346]
[1752739543491,0.69,173.48,173.46,56.04]
[1752739543658,11.19198222,173.5,173.46,31.42829346]
[1752739543864,0.69,173.47,173.46,31.42829346]
[1752739544366,11.19198222,173.5,173.46,31.42829346]
[1752739544568,0.69,173.49,173.48,26.0]
[1752739544978,0.69,173.49,173.46,5.42829346]
[1752739545155,0.69,173.48,173.46,5.42829346]
[1752739545482,0.69,173.48,173.47,26.0]
[1752739545657,0.69,173.52,173.47,67.93289906]
[1752739545858,1.5662,173.53,173.51,5.42829346]
[1752739546076,0.75,173.54,173.51,5.42829346]
[1752739546277,0.69,173.53,173.51,5.42829346]
[1752739546493,0.69,173.52,173.51,5.42829346]
[1752739546884,0.69,173.52,173.5,31.42829346]
[1752739547071,6.51238696,173.54,173.5,31.42829346]
[1752739547273,0.69,173.53,173.5,26.0]
[1752739547598,0.06,173.54,173.52,5.42829346]
[1752739547768,0.06,173.54,173.53,5.42829346]
[1752739548682,0.06,173.54,173.53,35.44829346]
[1752739549678,0.06,173.54,173.53,41.21098578]
[1752739552188,0.06,173.54,173.53,35.44829346]
[1752739553689,0.06,173.54,173.53,84.71566975]
[1752739554479,0.06,173.54,173.53,58.71566975]
[1752739556971,0.06,173.54,173.52,0.03]
[1752739557293,0.75,173.54,173.53,35.36829346]
[1752739557494,0.75,173.54,173.53,5.42829346]
[1752739557680,0.75,173.54,173.52,55.97]
[1752739557868,0.06,173.54,173.52,0.03]
[1752739558074,5.82237858,173.54,173.52,0.03]
[1752739558275,11.25067204,173.54,173.52,0.03]
[1752739558591,6.11829346,173.53,173.52,0.03]
[1752739559694,0.69,173.53,173.52,0.03]
[1752739560084,0.69,173.53,173.52,5.45829346]
[1752739560291,0.69,173.53,173.52,0.03]
[1752739564698,6.45269232,173.53,173.52,0.03]
[1752739564914,11.88098578,173.53,173.52,0.03]
[1752739565194,6.45269232,173.53,173.52,0.03]
[1752739565895,0.69,173.53,173.52,0.03]
[1752739566193,0.69,173.53,173.52,5.45829346]
[1752739567084,0.69,173.53,173.52,0.03]
[1752739571576,0.06,173.54,173.52,5.45829346]
[1752739571777,0.73,173.54,173.52,5.45829346]
[1752739572104,0.67,173.53,173.52,0.03]
[1752739572698,0.73,173.54,173.52,5.45829346]
[1752739572889,0.06,173.54,173.53,5.42829346]
[1752739573087,0.06,173.54,173.53,6.13829346]
[1752739573490,0.06,173.54,173.53,22.92297743]
[1752739574799,0.06,173.54,173.53,28.68566975]
[1752739575210,0.06,173.54,173.53,58.62566975]
[1752739579310,0.06,173.54,173.53,87.12566975]
[1752739580208,0.06,173.6,173.59,31.42829346]
[1752739580403,0.06,173.6,173.59,78.13297743]
[1752739580603,0.06,173.6,173.59,84.27127089]
[1752739581416,0.06,173.6,173.59,90.03197139]
[1752739582009,0.06,173.6,173.59,84.60367793]